[Event "Titled Tuesday Blitz October 31 Early 2023"]
[White "Kleiman, Jake"]
[Black "Hambleton, Aman"]
[WhiteFideId "2020041"]
[BlackFideId "2606577"]
[WhiteElo "2668"]
[BlackElo "2797"]
[Result "1/2-1/2"]
[Round "5"]
[TimeControl "180+1"]
[Date "2023.10.31"]
[WhiteClock "0:00:36"]
[BlackClock "0:00:06"]
[Board "33"]

1. e4 {[%clk 0:03:00]}  b6 {[%clk 0:02:57]} 2. d4 {[%clk 0:03:00]}  Bb7 {[%clk 0:02:55]} 3. Nc3 {[%clk 0:03:01]}  e6 {[%clk 0:02:55]} 4. Nf3 {[%clk 0:03:01]}  Bb4 {[%clk 0:02:55]} 5. Bd3 {[%clk 0:03:02]}  Nf6 {[%clk 0:02:54]} 6. Qe2 {[%clk 0:03:02]}  d5 {[%clk 0:02:52]} 7. exd5 {[%clk 0:02:51]}  Qxd5 {[%clk 0:02:52]} 8. O-O {[%clk 0:02:47]}  Bxc3 {[%clk 0:02:51]} 9. bxc3 {[%clk 0:02:47]}  Qh5 {[%clk 0:02:52]} 10. Ne5 {[%clk 0:02:39]}  Qxe2 {[%clk 0:02:51]} 11. Bxe2 {[%clk 0:02:40]}  Nbd7 {[%clk 0:02:51]} 12. f4 {[%clk 0:02:19]}  Ne4 {[%clk 0:02:47]} 13. Bf3 {[%clk 0:01:54]}  f5 {[%clk 0:02:42]} 14. c4 {[%clk 0:01:36]}  Nxe5 {[%clk 0:02:34]} 15. fxe5 {[%clk 0:01:36]}  O-O-O {[%clk 0:02:09]} 16. Be3 {[%clk 0:01:33]}  Ba6 {[%clk 0:01:33]} 17. Be2 {[%clk 0:01:24]}  c5 {[%clk 0:01:33]} 18. dxc5 {[%clk 0:01:18]}  Nxc5 {[%clk 0:01:30]} 19. a4 {[%clk 0:01:12]}  Kc7 {[%clk 0:01:18]} 20. a5 {[%clk 0:01:12]}  Bb7 {[%clk 0:01:19]} 21. axb6+ {[%clk 0:01:07]}  axb6 {[%clk 0:01:20]} 22. Rfb1 {[%clk 0:01:03]}  Nd7 {[%clk 0:01:03]} 23. Kf2 {[%clk 0:00:53]}  Ra8 {[%clk 0:01:02]} 24. Bd4 {[%clk 0:00:49]}  Bc6 {[%clk 0:00:55]} 25. g3 {[%clk 0:00:49]}  g5 {[%clk 0:00:52]} 26. Ke3 {[%clk 0:00:49]}  Nc5 {[%clk 0:00:31]} 27. Bh5 {[%clk 0:00:46]}  Rhf8 {[%clk 0:00:24]} 28. Rf1 {[%clk 0:00:40]}  f4+ {[%clk 0:00:19]} 29. gxf4 {[%clk 0:00:40]}  gxf4+ {[%clk 0:00:19]} 30. Rxf4 {[%clk 0:00:39]}  Rxf4 {[%clk 0:00:17]} 31. Kxf4 {[%clk 0:00:40]}  Rf8+ {[%clk 0:00:15]} 32. Ke3 {[%clk 0:00:39]}  Rf5 {[%clk 0:00:09]} 33. Be2 {[%clk 0:00:31]}  Kb7 {[%clk 0:00:03]} 34. Rb1 {[%clk 0:00:29]}  Kc7 {[%clk 0:00:03]} 35. Rg1 {[%clk 0:00:28]}  Rf7 {[%clk 0:00:01]} 36. Rg8 {[%clk 0:00:27]}  Re7 {[%clk 0:00:01]} 37. Bh5 {[%clk 0:00:25]}  Rd7 {[%clk 0:00:01]} 38. Rf8 {[%clk 0:00:23]}  Ba4 {[%clk 0:00:01]} 39. Rf7 {[%clk 0:00:22]}  Bxc2 {[%clk 0:00:01]} 40. Rf6 {[%clk 0:00:20]}  Bg6 {[%clk 0:00:01]} 41. Bxg6 {[%clk 0:00:19]}  hxg6 {[%clk 0:00:02]} 42. Bxc5 {[%clk 0:00:20]}  bxc5 {[%clk 0:00:02]} 43. Rxe6 {[%clk 0:00:20]}  Rh7 {[%clk 0:00:02]} 44. Rxg6 {[%clk 0:00:20]}  Rh4 {[%clk 0:00:03]} 45. Kd3 {[%clk 0:00:18]}  Kd7 {[%clk 0:00:02]} 46. Rd6+ {[%clk 0:00:18]}  Kc7 {[%clk 0:00:02]} 47. Kc3 {[%clk 0:00:17]}  Rh3+ {[%clk 0:00:02]} 48. Rd3 {[%clk 0:00:16]}  Rxh2 {[%clk 0:00:03]} 49. Rd5 {[%clk 0:00:16]}  Rh3+ {[%clk 0:00:02]} 50. Kd2 {[%clk 0:00:15]}  Kc6 {[%clk 0:00:03]} 51. Rd6+ {[%clk 0:00:15]}  Kc7 {[%clk 0:00:03]} 52. Rg6 {[%clk 0:00:13]}  Rh4 {[%clk 0:00:02]} 53. Kd3 {[%clk 0:00:13]}  Rd4+ {[%clk 0:00:02]} 54. Kc3 {[%clk 0:00:13]}  Re4 {[%clk 0:00:03]} 55. Re6 {[%clk 0:00:13]}  Kd7 {[%clk 0:00:02]} 56. Rd6+ {[%clk 0:00:14]}  Kc7 {[%clk 0:00:03]} 57. Rd5 {[%clk 0:00:14]}  Kc6 {[%clk 0:00:04]} 58. Rd6+ {[%clk 0:00:14]}  Kc7 {[%clk 0:00:04]} 59. Re6 {[%clk 0:00:14]}  Kd7 {[%clk 0:00:04]} 60. Rh6 {[%clk 0:00:15]}  Rxe5 {[%clk 0:00:04]} 61. Rh7+ {[%clk 0:00:15]}  Kc6 {[%clk 0:00:04]} 62. Rh6+ {[%clk 0:00:16]}  Kc7 {[%clk 0:00:05]} 63. Rh7+ {[%clk 0:00:16]}  Kb6 {[%clk 0:00:05]} 64. Rh6+ {[%clk 0:00:17]}  Ka5 {[%clk 0:00:06]} 65. Rh3 {[%clk 0:00:17]}  Rg5 {[%clk 0:00:04]} 66. Kb3 {[%clk 0:00:18]}  Rg1 {[%clk 0:00:03]} 67. Ka3 {[%clk 0:00:14]}  Ra1+ {[%clk 0:00:03]} 68. Kb3 {[%clk 0:00:14]}  Rb1+ {[%clk 0:00:03]} 69. Ka3 {[%clk 0:00:15]}  Rb4 {[%clk 0:00:03]} 70. Rc3 {[%clk 0:00:15]}  Rb8 {[%clk 0:00:02]} 71. Rc1 {[%clk 0:00:15]}  Rb7 {[%clk 0:00:02]} 72. Rc2 {[%clk 0:00:15]}  Re7 {[%clk 0:00:02]} 73. Rc3 {[%clk 0:00:16]}  Re4 {[%clk 0:00:03]} 74. Kb3 {[%clk 0:00:16]}  Rf4 {[%clk 0:00:03]} 75. Rd3 {[%clk 0:00:15]}  Rg4 {[%clk 0:00:03]} 76. Re3 {[%clk 0:00:15]}  Rg1 {[%clk 0:00:04]} 77. Rc3 {[%clk 0:00:15]}  Ra1 {[%clk 0:00:04]} 78. Rd3 {[%clk 0:00:15]}  Ra4 {[%clk 0:00:03]} 79. Rd5 {[%clk 0:00:14]}  Rb4+ {[%clk 0:00:03]} 80. Kc3 {[%clk 0:00:15]}  Kb6 {[%clk 0:00:04]} 81. Rd6+ {[%clk 0:00:16]}  Kc7 {[%clk 0:00:04]} 82. Rd5 {[%clk 0:00:16]}  Kc6 {[%clk 0:00:05]} 83. Rh5 {[%clk 0:00:16]}  Ra4 {[%clk 0:00:05]} 84. Rh6+ {[%clk 0:00:17]}  Kb7 {[%clk 0:00:05]} 85. Rh7+ {[%clk 0:00:18]}  Kb6 {[%clk 0:00:05]} 86. Rh6+ {[%clk 0:00:18]}  Ka5 {[%clk 0:00:06]} 87. Rc6 {[%clk 0:00:19]}  Ra3+ {[%clk 0:00:04]} 88. Kb2 {[%clk 0:00:19]}  Rf3 {[%clk 0:00:04]} 89. Rxc5+ {[%clk 0:00:19]}  Kb4 {[%clk 0:00:05]} 90. Rc8 {[%clk 0:00:19]}  Rf2+ {[%clk 0:00:05]} 91. Kc1 {[%clk 0:00:20]}  Kc3 {[%clk 0:00:04]} 92. Kd1 {[%clk 0:00:20]}  Rd2+ {[%clk 0:00:03]} 93. Ke1 {[%clk 0:00:20]}  Rd4 {[%clk 0:00:02]} 94. c5 {[%clk 0:00:20]}  Kc4 {[%clk 0:00:02]} 95. c6 {[%clk 0:00:21]}  Kc5 {[%clk 0:00:03]} 96. c7 {[%clk 0:00:21]}  Kc6 {[%clk 0:00:04]} 97. Rd8 {[%clk 0:00:21]}  Re4+ {[%clk 0:00:04]} 98. Kd2 {[%clk 0:00:21]}  Kxc7 {[%clk 0:00:05]} 99. Rd3 {[%clk 0:00:21]}  Kc6 {[%clk 0:00:05]} 100. Rc3+ {[%clk 0:00:22]}  Kd5 {[%clk 0:00:04]} 101. Rd3+ {[%clk 0:00:22]}  Kc4 {[%clk 0:00:05]} 102. Rc3+ {[%clk 0:00:22]}  Kb4 {[%clk 0:00:05]} 103. Rd3 {[%clk 0:00:23]}  Rh4 {[%clk 0:00:05]} 104. Re3 {[%clk 0:00:23]}  Kc5 {[%clk 0:00:05]} 105. Kd3 {[%clk 0:00:24]}  Rd4+ {[%clk 0:00:05]} 106. Kc3 {[%clk 0:00:24]}  Rg4 {[%clk 0:00:05]} 107. Kd3 {[%clk 0:00:24]}  Kd6 {[%clk 0:00:05]} 108. Re4 {[%clk 0:00:24]}  Rg1 {[%clk 0:00:06]} 109. Rd4+ {[%clk 0:00:25]}  Ke5 {[%clk 0:00:06]} 110. Re4+ {[%clk 0:00:25]}  Kf5 {[%clk 0:00:07]} 111. Re3 {[%clk 0:00:25]}  Rd1+ {[%clk 0:00:07]} 112. Ke2 {[%clk 0:00:26]}  Rd8 {[%clk 0:00:08]} 113. Rd3 {[%clk 0:00:26]}  Rb8 {[%clk 0:00:08]} 114. Re3 {[%clk 0:00:26]}  Kg4 {[%clk 0:00:08]} 115. Re4+ {[%clk 0:00:27]}  Kg3 {[%clk 0:00:08]} 116. Re7 {[%clk 0:00:27]}  Kf4 {[%clk 0:00:06]} 117. Rf7+ {[%clk 0:00:27]}  Ke5 {[%clk 0:00:07]} 118. Re7+ {[%clk 0:00:27]}  Kd4 {[%clk 0:00:07]} 119. Re3 {[%clk 0:00:28]}  Rb2+ {[%clk 0:00:06]} 120. Kf3 {[%clk 0:00:29]}  Rh2 {[%clk 0:00:06]} 121. Re4+ {[%clk 0:00:29]}  Kd5 {[%clk 0:00:07]} 122. Rg4 {[%clk 0:00:29]}  Rh3+ {[%clk 0:00:07]} 123. Rg3 {[%clk 0:00:29]}  Rh5 {[%clk 0:00:07]} 124. Rg4 {[%clk 0:00:30]}  Ke5 {[%clk 0:00:06]} 125. Kg3 {[%clk 0:00:30]}  Kf5 {[%clk 0:00:06]} 126. Rf4+ {[%clk 0:00:31]}  Ke5 {[%clk 0:00:06]} 127. Rg4 {[%clk 0:00:32]}  Rh1 {[%clk 0:00:06]} 128. Kf3 {[%clk 0:00:32]}  Rf1+ {[%clk 0:00:06]} 129. Ke2 {[%clk 0:00:32]}  Ra1 {[%clk 0:00:06]} 130. Kf3 {[%clk 0:00:33]}  Kf5 {[%clk 0:00:05]} 131. Rf4+ {[%clk 0:00:33]}  Kg5 {[%clk 0:00:05]} 132. Re4 {[%clk 0:00:33]}  Ra3+ {[%clk 0:00:05]} 133. Re3 {[%clk 0:00:34]}  Ra5 {[%clk 0:00:06]} 134. Re4 {[%clk 0:00:34]}  Rb5 {[%clk 0:00:06]} 135. Re3 {[%clk 0:00:34]}  Kf5 {[%clk 0:00:06]} 136. Rd3 {[%clk 0:00:34]}  Re5 {[%clk 0:00:05]} 137. Re3 {[%clk 0:00:34]}  Rd5 {[%clk 0:00:05]} 138. Rc3 {[%clk 0:00:34]}  Ra5 {[%clk 0:00:03]} 139. Re3 {[%clk 0:00:34]}  Ra4 {[%clk 0:00:04]} 140. Rd3 {[%clk 0:00:33]}  Rf4+ {[%clk 0:00:04]} 141. Ke3 {[%clk 0:00:34]}  Re4+ {[%clk 0:00:04]} 142. Kd2 {[%clk 0:00:34]}  Rc4 {[%clk 0:00:05]} 143. Rc3 {[%clk 0:00:34]}  Rd4+ {[%clk 0:00:05]} 144. Rd3 {[%clk 0:00:35]}  Rb4 {[%clk 0:00:05]} 145. Rf3+ {[%clk 0:00:35]}  Ke4 {[%clk 0:00:06]} 146. Re3+ {[%clk 0:00:36]}  Kd4 {[%clk 0:00:06]} 147. Rd3+ {[%clk 0:00:36]}  Ke4 {[%clk 0:00:06]} 148. Rc3 {[%clk 0:00:36]}  Rb2+ {[%clk 0:00:06]} 1/2-1/2


[Site "https://www.chess.com"]

[Event "Titled Tuesday Blitz October 31 Early 2023"]
[White "Bao, Qilin"]
[Black "Komov, Roman"]
[WhiteFideId "8605750"]
[BlackFideId "24175714"]
[WhiteElo "2665"]
[BlackElo "2782"]
[Result "0-1"]
[Round "5"]
[TimeControl "180+1"]
[Date "2023.10.31"]
[WhiteClock "0:00:01"]
[BlackClock "0:00:21"]
[Board "35"]

1. Nf3 {[%clk 0:02:58]}  d5 {[%clk 0:03:00]} 2. g3 {[%clk 0:02:57]}  c5 {[%clk 0:02:59]} 3. Bg2 {[%clk 0:02:58]}  Nf6 {[%clk 0:03:00]} 4. O-O {[%clk 0:02:58]}  h6 {[%clk 0:03:00]} 5. c4 {[%clk 0:02:57]}  d4 {[%clk 0:03:00]} 6. e3 {[%clk 0:02:57]}  Nc6 {[%clk 0:03:01]} 7. exd4 {[%clk 0:02:58]}  cxd4 {[%clk 0:03:01]} 8. d3 {[%clk 0:02:58]}  e6 {[%clk 0:03:02]} 9. a3 {[%clk 0:02:43]}  a5 {[%clk 0:03:02]} 10. Bf4 {[%clk 0:02:42]}  Bd6 {[%clk 0:03:01]} 11. Bxd6 {[%clk 0:02:39]}  Qxd6 {[%clk 0:03:02]} 12. Nbd2 {[%clk 0:02:37]}  O-O {[%clk 0:03:02]} 13. Re1 {[%clk 0:02:36]}  Nd7 {[%clk 0:02:59]} 14. Qc2 {[%clk 0:02:29]}  f5 {[%clk 0:02:57]} 15. Nh4 {[%clk 0:02:21]}  Nf6 {[%clk 0:02:33]} 16. Ng6 {[%clk 0:02:18]}  Re8 {[%clk 0:02:33]} 17. f4 {[%clk 0:02:15]}  Ng4 {[%clk 0:02:24]} 18. Nf1 {[%clk 0:02:14]}  e5 {[%clk 0:02:11]} 19. Nxe5 {[%clk 0:02:08]}  Ncxe5 {[%clk 0:02:03]} 20. fxe5 {[%clk 0:02:03]}  Rxe5 {[%clk 0:02:03]} 21. Qd2 {[%clk 0:01:45]}  Ra6 {[%clk 0:01:44]} 22. Rxe5 {[%clk 0:01:41]}  Nxe5 {[%clk 0:01:45]} 23. Re1 {[%clk 0:01:37]}  Bd7 {[%clk 0:01:31]} 24. Bxb7 {[%clk 0:01:13]}  Rb6 {[%clk 0:01:31]} 25. Bd5+ {[%clk 0:00:51]}  Qxd5 {[%clk 0:01:18]} 26. cxd5 {[%clk 0:00:51]}  Nf3+ {[%clk 0:01:18]} 27. Kh1 {[%clk 0:00:42]}  Nxd2 {[%clk 0:01:19]} 28. Nxd2 {[%clk 0:00:42]}  Rxb2 {[%clk 0:01:20]} 29. Nc4 {[%clk 0:00:36]}  Rb3 {[%clk 0:01:19]} 30. Rd1 {[%clk 0:00:20]}  Bb5 {[%clk 0:01:15]} 31. d6 {[%clk 0:00:21]}  Kf7 {[%clk 0:01:11]} 32. Kg1 {[%clk 0:00:19]}  a4 {[%clk 0:00:58]} 33. Kf2 {[%clk 0:00:17]}  Rc3 {[%clk 0:00:54]} 34. h4 {[%clk 0:00:17]}  Bxc4 {[%clk 0:00:50]} 35. dxc4 {[%clk 0:00:17]}  Rxc4 {[%clk 0:00:51]} 36. Re1 {[%clk 0:00:17]}  Rc6 {[%clk 0:00:32]} 37. Re7+ {[%clk 0:00:09]}  Kf6 {[%clk 0:00:32]} 38. Ra7 {[%clk 0:00:10]}  Rxd6 {[%clk 0:00:30]} 39. Rxa4 {[%clk 0:00:11]}  Ke5 {[%clk 0:00:31]} 40. Ke2 {[%clk 0:00:06]}  g5 {[%clk 0:00:28]} 41. hxg5 {[%clk 0:00:06]}  hxg5 {[%clk 0:00:29]} 42. Ra5+ {[%clk 0:00:06]}  Ke4 {[%clk 0:00:29]} 43. g4 {[%clk 0:00:06]}  d3+ {[%clk 0:00:22]} 44. Kd2 {[%clk 0:00:06]}  fxg4 {[%clk 0:00:23]} 45. Rxg5 {[%clk 0:00:06]}  Kf4 {[%clk 0:00:23]} 46. Rg8 {[%clk 0:00:03]}  g3 {[%clk 0:00:23]} 47. a4 {[%clk 0:00:03]}  Kf3 {[%clk 0:00:22]} 48. a5 {[%clk 0:00:04]}  g2 {[%clk 0:00:23]} 49. a6 {[%clk 0:00:03]}  Rxa6 {[%clk 0:00:23]} 50. Kxd3 {[%clk 0:00:04]}  Rd6+ {[%clk 0:00:23]} 51. Kc2 {[%clk 0:00:04]}  Kf2 {[%clk 0:00:24]} 52. Rf8+ {[%clk 0:00:03]}  Kg1 {[%clk 0:00:23]} 53. Kc3 {[%clk 0:00:04]}  Rd5 {[%clk 0:00:20]} 54. Kc4 {[%clk 0:00:04]}  Rd1 {[%clk 0:00:21]} 55. Kc3 {[%clk 0:00:03]}  Rf1 {[%clk 0:00:21]} 56. Rg8 {[%clk 0:00:01]}  Kf2 {[%clk 0:00:21]} 0-1


[Site "https://www.chess.com"]

[Event "Titled Tuesday Blitz October 31 Early 2023"]
[White "Parkhov, Yair"]
[Black "Hayrapetyan, Hovik"]
[WhiteFideId "2813408"]
[BlackFideId "13302639"]
[WhiteElo "2665"]
[BlackElo "2777"]
[Result "0-1"]
[Round "5"]
[TimeControl "180+1"]
[Date "2023.10.31"]
[WhiteClock "0:00:12"]
[BlackClock "0:00:47"]
[Board "36"]

1. d4 {[%clk 0:03:00]}  Nf6 {[%clk 0:02:59]} 2. Nf3 {[%clk 0:03:00]}  d5 {[%clk 0:02:59]} 3. Bf4 {[%clk 0:03:01]}  c5 {[%clk 0:02:59]} 4. e3 {[%clk 0:03:01]}  Nc6 {[%clk 0:03:00]} 5. Nbd2 {[%clk 0:03:01]}  Bg4 {[%clk 0:03:00]} 6. c3 {[%clk 0:02:58]}  e6 {[%clk 0:03:00]} 7. Bb5 {[%clk 0:02:40]}  Bd6 {[%clk 0:02:47]} 8. Bg3 {[%clk 0:02:21]}  O-O {[%clk 0:02:45]} 9. O-O {[%clk 0:02:15]}  Bxg3 {[%clk 0:02:45]} 10. hxg3 {[%clk 0:02:15]}  Qd6 {[%clk 0:02:38]} 11. Qa4 {[%clk 0:02:12]}  Bxf3 {[%clk 0:02:37]} 12. Nxf3 {[%clk 0:02:12]}  Nd7 {[%clk 0:02:32]} 13. Rfd1 {[%clk 0:02:05]}  cxd4 {[%clk 0:02:16]} 14. exd4 {[%clk 0:02:00]}  a6 {[%clk 0:02:14]} 15. Bd3 {[%clk 0:01:57]}  b5 {[%clk 0:02:13]} 16. Qc2 {[%clk 0:01:57]}  h6 {[%clk 0:02:09]} 17. a3 {[%clk 0:01:57]}  Rfc8 {[%clk 0:02:08]} 18. Qe2 {[%clk 0:01:57]}  Na5 {[%clk 0:02:06]} 19. Re1 {[%clk 0:01:44]}  Nc4 {[%clk 0:02:04]} 20. Rad1 {[%clk 0:01:43]}  a5 {[%clk 0:02:02]} 21. g4 {[%clk 0:01:43]}  Qf4 {[%clk 0:01:59]} 22. Nh2 {[%clk 0:01:33]}  Rab8 {[%clk 0:01:53]} 23. g3 {[%clk 0:01:33]}  Qf6 {[%clk 0:01:51]} 24. f4 {[%clk 0:01:31]}  b4 {[%clk 0:01:51]} 25. axb4 {[%clk 0:01:31]}  axb4 {[%clk 0:01:51]} 26. g5 {[%clk 0:00:53]}  hxg5 {[%clk 0:01:47]} 27. Ng4 {[%clk 0:00:54]}  Qd8 {[%clk 0:01:44]} 28. Qh2 {[%clk 0:00:49]}  Nf6 {[%clk 0:01:36]} 29. Nh6+ {[%clk 0:00:23]}  gxh6 {[%clk 0:01:31]} 30. Qxh6 {[%clk 0:00:24]}  Nd6 {[%clk 0:01:18]} 31. Re5 {[%clk 0:00:21]}  Nfe4 {[%clk 0:01:09]} 32. Rxg5+ {[%clk 0:00:18]}  Nxg5 {[%clk 0:01:07]} 33. fxg5 {[%clk 0:00:18]}  Nf5 {[%clk 0:01:01]} 34. Bxf5 {[%clk 0:00:18]}  exf5 {[%clk 0:01:02]} 35. g6 {[%clk 0:00:18]}  Qf6 {[%clk 0:00:57]} 36. Qh7+ {[%clk 0:00:19]}  Kf8 {[%clk 0:00:57]} 37. gxf7 {[%clk 0:00:12]}  Qxf7 {[%clk 0:00:50]} 38. Qh8+ {[%clk 0:00:12]}  Ke7 {[%clk 0:00:47]} 39. Qe5+ {[%clk 0:00:12]} 0-1


[Site "https://www.chess.com"]

[Event "Titled Tuesday Blitz October 31 Early 2023"]
[White "Liyanage, Ranindu Dilshan"]
[Black "Volkov, Maksim"]
[WhiteFideId "9915834"]
[BlackFideId "54123070"]
[WhiteElo "2777"]
[BlackElo "2650"]
[Result "0-1"]
[Round "5"]
[TimeControl "180+1"]
[Date "2023.10.31"]
[WhiteClock "0:00:00"]
[BlackClock "0:00:04"]
[Board "37"]

1. e4 {[%clk 0:02:53]}  c5 {[%clk 0:02:57]} 2. Nf3 {[%clk 0:02:53]}  d6 {[%clk 0:02:57]} 3. d4 {[%clk 0:02:53]}  cxd4 {[%clk 0:02:57]} 4. Nxd4 {[%clk 0:02:54]}  Nf6 {[%clk 0:02:58]} 5. Nc3 {[%clk 0:02:54]}  a6 {[%clk 0:02:57]} 6. Bc4 {[%clk 0:02:55]}  e6 {[%clk 0:02:57]} 7. a4 {[%clk 0:02:52]}  b6 {[%clk 0:02:46]} 8. O-O {[%clk 0:02:50]}  Qc7 {[%clk 0:02:45]} 9. Qe2 {[%clk 0:02:48]}  Nbd7 {[%clk 0:02:41]} 10. Be3 {[%clk 0:02:34]}  Nc5 {[%clk 0:02:26]} 11. f3 {[%clk 0:02:30]}  Be7 {[%clk 0:02:26]} 12. Ba2 {[%clk 0:02:18]}  O-O {[%clk 0:02:23]} 13. Rad1 {[%clk 0:02:16]}  Re8 {[%clk 0:02:12]} 14. Qf2 {[%clk 0:02:10]}  Bb7 {[%clk 0:02:07]} 15. Rfe1 {[%clk 0:02:02]}  Rad8 {[%clk 0:01:55]} 16. Nde2 {[%clk 0:01:46]}  Bf8 {[%clk 0:01:46]} 17. Nf4 {[%clk 0:01:39]}  g6 {[%clk 0:01:39]} 18. g4 {[%clk 0:01:14]}  Bg7 {[%clk 0:01:37]} 19. g5 {[%clk 0:01:13]}  Nfd7 {[%clk 0:01:36]} 20. Bd4 {[%clk 0:01:01]}  Ne5 {[%clk 0:01:25]} 21. Ng2 {[%clk 0:00:46]}  f6 {[%clk 0:01:03]} 22. f4 {[%clk 0:00:35]}  Ned7 {[%clk 0:00:54]} 23. b4 {[%clk 0:00:30]}  fxg5 {[%clk 0:00:31]} 24. bxc5 {[%clk 0:00:29]}  Bxd4 {[%clk 0:00:18]} 25. Qxd4 {[%clk 0:00:28]}  Nxc5 {[%clk 0:00:18]} 26. f5 {[%clk 0:00:25]}  Qg7 {[%clk 0:00:12]} 27. fxe6 {[%clk 0:00:19]}  Qxd4+ {[%clk 0:00:10]} 28. Rxd4 {[%clk 0:00:19]}  Nxe6 {[%clk 0:00:10]} 29. Rb4 {[%clk 0:00:19]}  Rc8 {[%clk 0:00:09]} 30. Re3 {[%clk 0:00:13]}  Kg7 {[%clk 0:00:09]} 31. Rxb6 {[%clk 0:00:13]}  Ba8 {[%clk 0:00:09]} 32. Rxd6 {[%clk 0:00:09]}  Nf4 {[%clk 0:00:08]} 33. Rd7+ {[%clk 0:00:07]}  Kh6 {[%clk 0:00:07]} 34. h4 {[%clk 0:00:07]}  Rxc3 {[%clk 0:00:05]} 35. Rxc3 {[%clk 0:00:06]}  Ne2+ {[%clk 0:00:05]} 36. Kh2 {[%clk 0:00:04]}  Nxc3 {[%clk 0:00:06]} 37. hxg5+ {[%clk 0:00:05]}  Kxg5 {[%clk 0:00:06]} 38. Bc4 {[%clk 0:00:06]}  Bxe4 {[%clk 0:00:06]} 39. Bxa6 {[%clk 0:00:06]}  h5 {[%clk 0:00:05]} 40. Rc7 {[%clk 0:00:06]}  Nxa4 {[%clk 0:00:03]} 41. Bb5 {[%clk 0:00:06]}  Ra8 {[%clk 0:00:04]} 42. Rc4 {[%clk 0:00:06]}  Bxg2 {[%clk 0:00:04]} 43. Kxg2 {[%clk 0:00:06]}  Nb6 {[%clk 0:00:04]} 44. Rc5+ {[%clk 0:00:04]}  Kf4 {[%clk 0:00:05]} 45. Rc6 {[%clk 0:00:00]}  Nd5 {[%clk 0:00:04]} 0-1


[Site "https://www.chess.com"]

[Event "Titled Tuesday Blitz October 31 Early 2023"]
[White "Saydaliev, Saidakbar"]
[Black "Kuzhylnyi, Oleksandr"]
[WhiteFideId "14203693"]
[BlackFideId "34110500"]
[WhiteElo "2776"]
[BlackElo "2645"]
[Result "1-0"]
[Round "5"]
[TimeControl "180+1"]
[Date "2023.10.31"]
[WhiteClock "0:01:01"]
[BlackClock "0:00:17"]
[Board "38"]

1. e4 {[%clk 0:02:55]}  g6 {[%clk 0:03:00]} 2. d4 {[%clk 0:02:54]}  Bg7 {[%clk 0:03:01]} 3. Nc3 {[%clk 0:02:55]}  d6 {[%clk 0:03:01]} 4. f4 {[%clk 0:02:54]}  a6 {[%clk 0:03:00]} 5. Nf3 {[%clk 0:02:54]}  b5 {[%clk 0:03:00]} 6. Bd3 {[%clk 0:02:54]}  Nd7 {[%clk 0:03:00]} 7. a4 {[%clk 0:02:55]}  b4 {[%clk 0:03:00]} 8. Ne2 {[%clk 0:02:56]}  c5 {[%clk 0:02:59]} 9. c3 {[%clk 0:02:56]}  cxd4 {[%clk 0:02:59]} 10. cxd4 {[%clk 0:02:56]}  a5 {[%clk 0:03:00]} 11. O-O {[%clk 0:02:54]}  Ngf6 {[%clk 0:02:52]} 12. e5 {[%clk 0:02:50]}  Nd5 {[%clk 0:02:50]} 13. Ng3 {[%clk 0:02:50]}  Ba6 {[%clk 0:02:40]} 14. Bxa6 {[%clk 0:02:27]}  Rxa6 {[%clk 0:02:40]} 15. Qe2 {[%clk 0:02:07]}  Qa8 {[%clk 0:02:24]} 16. f5 {[%clk 0:02:05]}  dxe5 {[%clk 0:02:19]} 17. dxe5 {[%clk 0:02:04]}  O-O {[%clk 0:01:54]} 18. Bg5 {[%clk 0:01:56]}  f6 {[%clk 0:01:24]} 19. e6 {[%clk 0:01:46]}  fxg5 {[%clk 0:00:59]} 20. exd7 {[%clk 0:01:45]}  g4 {[%clk 0:00:50]} 21. Ng5 {[%clk 0:01:44]}  Qa7+ {[%clk 0:00:42]} 22. Kh1 {[%clk 0:01:44]}  Qxd7 {[%clk 0:00:42]} 23. Qxa6 {[%clk 0:01:43]}  gxf5 {[%clk 0:00:37]} 24. Rad1 {[%clk 0:01:40]}  f4 {[%clk 0:00:28]} 25. N3e4 {[%clk 0:01:31]}  Qf5 {[%clk 0:00:26]} 26. Qe6+ {[%clk 0:01:31]}  Qxe6 {[%clk 0:00:26]} 27. Nxe6 {[%clk 0:01:32]}  Rf5 {[%clk 0:00:24]} 28. Nxg7 {[%clk 0:01:11]}  Kxg7 {[%clk 0:00:24]} 29. Rfe1 {[%clk 0:01:09]}  Ne3 {[%clk 0:00:19]} 30. Rd7 {[%clk 0:01:03]}  Re5 {[%clk 0:00:20]} 31. Nf2 {[%clk 0:01:03]}  h5 {[%clk 0:00:18]} 32. Nd3 {[%clk 0:01:00]}  Re4 {[%clk 0:00:19]} 33. Nxf4 {[%clk 0:01:00]}  Rxf4 {[%clk 0:00:17]} 34. Rxe7+ {[%clk 0:01:01]} 1-0


[Site "https://www.chess.com"]

[Event "Titled Tuesday Blitz October 31 Early 2023"]
[White "Skliarov, Viktor"]
[Black "Sokolovsky, Yahli"]
[WhiteFideId "14106736"]
[BlackFideId "2820242"]
[WhiteElo "2641"]
[BlackElo "2774"]
[Result "0-1"]
[Round "5"]
[TimeControl "180+1"]
[Date "2023.10.31"]
[WhiteClock "0:00:00"]
[BlackClock "0:00:04"]
[Board "39"]

1. e4 {[%clk 0:03:00]}  d6 {[%clk 0:02:58]} 2. d4 {[%clk 0:03:00]}  g6 {[%clk 0:02:58]} 3. Nc3 {[%clk 0:03:01]}  Bg7 {[%clk 0:02:58]} 4. Be3 {[%clk 0:03:01]}  a6 {[%clk 0:02:59]} 5. f3 {[%clk 0:03:02]}  b5 {[%clk 0:02:59]} 6. Qd2 {[%clk 0:03:02]}  Bb7 {[%clk 0:02:59]} 7. g4 {[%clk 0:03:02]}  Nd7 {[%clk 0:02:56]} 8. h4 {[%clk 0:03:02]}  h5 {[%clk 0:02:56]} 9. g5 {[%clk 0:02:43]}  e5 {[%clk 0:02:50]} 10. O-O-O {[%clk 0:02:39]}  Ne7 {[%clk 0:02:48]} 11. Bg2 {[%clk 0:02:32]}  O-O {[%clk 0:02:44]} 12. f4 {[%clk 0:02:32]}  b4 {[%clk 0:02:15]} 13. Nce2 {[%clk 0:02:21]}  c5 {[%clk 0:02:14]} 14. dxe5 {[%clk 0:02:10]}  Qa5 {[%clk 0:01:57]} 15. Qxd6 {[%clk 0:01:35]}  Qxa2 {[%clk 0:01:43]} 16. Qxe7 {[%clk 0:01:18]}  Rad8 {[%clk 0:01:33]} 17. Rxd7 {[%clk 0:01:10]}  Qa5 {[%clk 0:00:21]} 18. Nh3 {[%clk 0:00:52]}  Rxd7 {[%clk 0:00:17]} 19. Qxd7 {[%clk 0:00:52]}  Rd8 {[%clk 0:00:18]} 20. Qxd8+ {[%clk 0:00:38]}  Qxd8 {[%clk 0:00:19]} 21. Bxc5 {[%clk 0:00:32]}  Qa5 {[%clk 0:00:19]} 22. Bd4 {[%clk 0:00:26]}  Bc8 {[%clk 0:00:20]} 23. Kd2 {[%clk 0:00:25]}  Bg4 {[%clk 0:00:17]} 24. Nf2 {[%clk 0:00:18]}  b3+ {[%clk 0:00:17]} 25. c3 {[%clk 0:00:14]}  Qa2 {[%clk 0:00:15]} 26. Nd3 {[%clk 0:00:14]}  Qa4 {[%clk 0:00:13]} 27. Ng3 {[%clk 0:00:10]}  a5 {[%clk 0:00:09]} 28. f5 {[%clk 0:00:11]}  Qc6 {[%clk 0:00:08]} 29. Ra1 {[%clk 0:00:08]}  a4 {[%clk 0:00:09]} 30. Ke3 {[%clk 0:00:04]}  Bf8 {[%clk 0:00:09]} 31. Nf2 {[%clk 0:00:03]}  a3 {[%clk 0:00:09]} 32. bxa3 {[%clk 0:00:02]}  b2 {[%clk 0:00:10]} 33. Rb1 {[%clk 0:00:03]}  Bxa3 {[%clk 0:00:10]} 34. Nxg4 {[%clk 0:00:03]}  hxg4 {[%clk 0:00:11]} 35. e6 {[%clk 0:00:03]}  fxe6 {[%clk 0:00:11]} 36. fxg6 {[%clk 0:00:03]}  Qc4 {[%clk 0:00:11]} 37. Nh5 {[%clk 0:00:03]}  Qa2 {[%clk 0:00:11]} 38. Rf1 {[%clk 0:00:03]}  e5 {[%clk 0:00:03]} 39. g7 {[%clk 0:00:02]}  exd4+ {[%clk 0:00:03]} 40. Kxd4 {[%clk 0:00:03]}  b1=Q {[%clk 0:00:03]} 41. Rf8+ {[%clk 0:00:02]}  Bxf8 {[%clk 0:00:03]} 42. gxf8=Q+ {[%clk 0:00:00]}  Kxf8 {[%clk 0:00:04]} 0-1


[Site "https://www.chess.com"]